[Event "European Online Club-ch-E 2021"]
[Site "Online"]
[Date "2021.03.27"]
[Round "3.8"]
[White "Safarli, Eltaj"]
[Black "Huzman, Alexander"]
[Result "1/2-1/2"]
[ECO "B30"]
[WhiteElo "2598"]
[BlackElo "2561"]
[Annotator "ChessBase"]
[PlyCount "68"]
[EventDate "2021.03.27"]
[EventType "team-tourn"]
[EventCountry "NET"]
[SourceTitle "playchess.com"]
[Source "ChessBase"]
[SourceQuality "1"]
[TimeControl "900+5"]

1. e4 {[%emt 0:00:00]} c5 {[%emt 0:00:03]} 2. Nc3 {[%emt 0:00:18]} Nc6 {[%emt 0:00:03]} 3. Bb5 {[%emt 0:00:05]} Nd4 {[%emt 0:00:05]} 4. Nf3 {[%emt 0:00:01]} e6 {[%emt 0:00:03]} 5. O-O {[%emt 0:00:03]} a6 {[%emt 0:00:05]} 6. Bd3 {[%emt 0:00:01]} Nc6 {[%emt 0:00:03]} 7. e5 {[%emt 0:00:09]} d5 {[%emt 0:00:26]} 8. exd6 {[%emt 0:00:09]} Bxd6 {[%emt 0:00:08]} 9. Re1 {[%emt 0:00:21]} Nf6 {[%emt 0:00:06]} 10. Ne4 {[%emt 0:00:01]} O-O {[%emt 0:00:22]} 11. Nxf6+ {[%emt 0:00:07]} Qxf6 {[%emt 0:00:02]} 12. Be4 {[%emt 0:00:01]} Nd4 {[%emt 0:00:16]} 13. c3 {[%emt 0:00:27]} Nxf3+ {[%emt 0:00:09]} 14. Qxf3 {[%emt 0:00:01]} Qxf3 {[%emt 0:00:39]} 15. Bxf3 {[%emt 0:00:02]} Ra7 {[%emt 0:00:36]} 16. d4 {[%emt 0:04:03]} cxd4 {[%emt 0:00:29]} 17. cxd4 {[%emt 0:00:03]} b5 {[%emt 0:00:36]} 18. Be3 {[%emt 0:00:17]} Bb7 {[%emt 0:00:44]} 19. Bxb7 {[%emt 0:01:18]} Rxb7 {[%emt 0:00:03]} 20. Rac1 {[%emt 0:00:03]} Rd8 {[%emt 0:03:03]} 21. Rc6 {[%emt 0:00:05]} a5 {[%emt 0:00:01]} 22. Bg5 {[%emt 0:01:34]} f6 {[%emt 0:00:06]} 23. Rxe6 {[%emt 0:01:09]} Bxh2+ {[%emt 0:00:03]} 24. Kxh2 {[%emt 0:00:02]} fxg5 {[%emt 0:00:02]} 25. Red6 {[%emt 0:00:33]} Rxd6 {[%emt 0:00:13]} 26. Rxd6 {[%emt 0:00:02]} Rc7 {[%emt 0:00:02]} 27. Rd5 {[%emt 0:00:11]} b4 {[%emt 0:00:10]} 28. Rxa5 {[%emt 0:00:16]} Rc2 {[%emt 0:00:03]} 29. b3 {[%emt 0:00:04]} Rxf2 {[%emt 0:00:07]} 30. Rxg5 {[%emt 0:00:03]} Rd2 {[%emt 0:00:30]} 31. Rd5 {[%emt 0:00:48]} Kf7 {[%emt 0:00:04]} 32. Rd7+ {[%emt 0:00:12]} Kf6 {[%emt 0:00:25]} 33. Rd6+ {[%emt 0:01:09]} Ke7 {[%emt 0:00:11]} 34. Rd5 {[%emt 0:00:08]} Ke6 {[%emt 0:00:05]} 1/2-1/2

[Event "European Online Club-ch-E 2021"]
[Site "Online"]
[Date "2021.03.27"]
[Round "3.9"]
[White "Chatalbashev, Boris"]
[Black "Ozturk Orenli, Kubra"]
[Result "1-0"]
[ECO "D22"]
[WhiteElo "2530"]
[BlackElo "2330"]
[Annotator "ChessBase"]
[PlyCount "47"]
[EventDate "2021.03.27"]
[EventType "team-tourn"]
[EventCountry "NET"]
[SourceTitle "playchess.com"]
[Source "ChessBase"]
[SourceQuality "1"]
[TimeControl "900+5"]

1. d4 {[%emt 0:00:00]} d5 {[%emt 0:00:08]} 2. c4 {[%emt 0:00:02]} dxc4 {[%emt 0:00:18]} 3. Nf3 {[%emt 0:00:04]} a6 {[%emt 0:00:15]} 4. e3 {[%emt 0:00:03]} b5 {[%emt 0:00:03]} 5. a4 {[%emt 0:00:03]} Bb7 {[%emt 0:00:03]} 6. b3 {[%emt 0:00:15]} Nf6 {[%emt 0:00:11]} 7. bxc4 {[%emt 0:00:03]} bxc4 {[%emt 0:00:02]} 8. Bxc4 {[%emt 0:00:03]} e6 {[%emt 0:00:02]} 9. Nbd2 {[%emt 0:00:15]} c5 {[%emt 0:00:32]} 10. Rb1 {[%emt 0:01:11]} Bd5 {[%emt 0:00:10]} 11. O-O {[%emt 0:00:23]} Nc6 {[%emt 0:00:43]} 12. Qe2 {[%emt 0:02:48]} Bxc4 {[%emt 0:03:05]} 13. Qxc4 {[%emt 0:00:22]} Qd5 {[%emt 0:00:39]} 14. Rb6 {[%emt 0:00:23]} Nb4 {[%emt 0:01:02]} 15. Ne5 {[%emt 0:01:00]} Be7 {[%emt 0:01:14]} 16. Ba3 {[%emt 0:00:25]} Qxc4 {[%emt 0:02:12]} 17. Ndxc4 {[%emt 0:00:08]} Nfd5 {[%emt 0:00:37]} 18. Rb7 {[%emt 0:01:15]} f6 {[%emt 0:00:36]} 19. dxc5 {[%emt 0:00:27]} Bxc5 {[%emt 0:03:32]} 20. Nc6 {[%emt 0:00:16]} Nxc6 {[%emt 0:01:02]} 21. Bxc5 {[%emt 0:00:05]} Nde7 {[%emt 0:00:04]} 22. Rfb1 {[%emt 0:00:37]} Kf7 {[%emt 0:00:07]} 23. Bxe7 {[%emt 0:00:24]} Nxe7 {[%emt 0:00:03]} 24. Nd6+ {[%emt 0:00:02]} 1-0

[Event "European Online Club-ch-E 2021"]
[Site "Online"]
[Date "2021.03.27"]
[Round "3.10"]
[White "Caglar, Sila"]
[Black "Moreno Trujillo, Alejandro"]
[Result "0-1"]
[ECO "C07"]
[WhiteElo "2250"]
[BlackElo "2483"]
[Annotator "ChessBase"]
[PlyCount "72"]
[EventDate "2021.03.27"]
[EventType "team-tourn"]
[EventCountry "NET"]
[SourceTitle "playchess.com"]
[Source "ChessBase"]
[SourceQuality "1"]
[TimeControl "900+5"]

1. e4 {[%emt 0:00:00]} e6 {[%emt 0:00:05]} 2. d4 {[%emt 0:00:03]} d5 {[%emt 0:00:03]} 3. Nd2 {[%emt 0:00:01]} c5 {[%emt 0:00:05]} 4. c3 {[%emt 0:00:02]} cxd4 {[%emt 0:00:16]} 5. cxd4 {[%emt 0:00:02]} dxe4 {[%emt 0:00:01]} 6. Nxe4 {[%emt 0:00:01]} Nf6 {[%emt 0:00:33]} 7. Nc3 {[%emt 0:00:03]} Bd7 {[%emt 0:00:47]} 8. Nf3 {[%emt 0:00:33]} Bc6 {[%emt 0:00:03]} 9. Be2 {[%emt 0:00:08]} Nbd7 {[%emt 0:00:05]} 10. O-O {[%emt 0:00:03]} Bd6 {[%emt 0:00:03]} 11. Bb5 {[%emt 0:01:43]} Bxb5 {[%emt 0:00:42]} 12. Nxb5 {[%emt 0:00:03]} Bb8 {[%emt 0:00:03]} 13. Bg5 {[%emt 0:02:28]} h6 {[%emt 0:00:16]} 14. Bh4 {[%emt 0:02:05]} O-O {[%emt 0:00:23]} 15. Rc1 {[%emt 0:00:43]} Bf4 {[%emt 0:00:18]} 16. Rc2 {[%emt 0:02:25]} Qa5 {[%emt 0:00:36]} 17. Na3 {[%emt 0:00:51]} Rac8 {[%emt 0:00:28]} 18. Bg3 {[%emt 0:04:06]} Bxg3 {[%emt 0:00:24]} 19. hxg3 {[%emt 0:00:02]} Nb6 {[%emt 0:00:18]} 20. Qd3 {[%emt 0:01:10]} Rxc2 {[%emt 0:00:21]} 21. Nxc2 {[%emt 0:00:07]} Qxa2 {[%emt 0:00:18]} 22. Ra1 {[%emt 0:00:06]} Qxb2 {[%emt 0:00:10]} 23. Rxa7 {[%emt 0:00:01]} Nbd5 {[%emt 0:00:10]} 24. Ne3 {[%emt 0:00:08]} Nxe3 {[%emt 0:00:21]} 25. Qxe3 {[%emt 0:00:03]} Rc8 {[%emt 0:01:34]} 26. Ne5 {[%emt 0:00:05]} Rc1+ {[%emt 0:02:27]} 27. Kh2 {[%emt 0:00:03]} Qb1 {[%emt 0:00:02]} 28. g4 {[%emt 0:00:07]} Ne4 {[%emt 0:00:28]} 29. g3 {[%emt 0:00:08]} Rh1+ {[%emt 0:00:36]} 30. Kg2 {[%emt 0:00:01]} Qf1+ {[%emt 0:00:18]} 31. Kf3 {[%emt 0:00:03]} Ng5+ {[%emt 0:00:02]} 32. Kf4 {[%emt 0:00:02]} Nh3+ {[%emt 0:00:05]} 33. Kf3 {[%emt 0:00:04]} Qd1+ {[%emt 0:00:04]} 34. Kg2 {[%emt 0:00:03]} Rg1+ {[%emt 0:00:33]} 35. Kh2 {[%emt 0:00:02]} Ng5 {[%emt 0:00:39]} 36. Qd3 {[%emt 0:00:18]} Rh1+ {[%emt 0:00:04]} 0-1

[Event "European Online Club-ch-E 2021"]
[Site "Online"]
[Date "2021.03.27"]
[Round "3.11"]
[White "Garrido Dominguez, Jesus"]
[Black "Ince, Safiye Oyku"]
[Result "1-0"]
[ECO "B44"]
[WhiteElo "2413"]
[BlackElo "1995"]
[Annotator "NA"]
[PlyCount "91"]
[EventDate "2021.03.27"]
[EventType "team-tourn"]
[EventCountry "NET"]
[SourceTitle "playchess.com"]
[Source "ChessBase"]
[SourceQuality "1"]
[TimeControl "900+5"]

1. e4 {[%emt 0:00:00]} c5 {[%emt 0:00:03]} 2. Nf3 {[%emt 0:00:03]} e6 {[%emt 0:00:02]} 3. d4 {[%emt 0:00:02]} cxd4 {[%emt 0:00:01]} 4. Nxd4 {[%emt 0:00:02]} Nc6 {[%emt 0:00:01]} 5. Nxc6 {[%emt 0:00:01]} bxc6 {[%emt 0:00:03]} 6. Bd3 {[%emt 0:00:02]} e5 {[%emt 0:00:09]} 7. Nd2 {[%emt 0:00:03]} Nf6 {[%emt 0:00:10]} 8. c4 {[%emt 0:00:04]} Bc5 {[%emt 0:00:14]} 9. b3 {[%emt 0:00:10]} Bd4 {[%emt 0:00:34]} 10. Rb1 {[%emt 0:00:03]} O-O {[%emt 0:00:05]} 11. Nf3 {[%emt 0:00:05]} Bc3+ {[%emt 0:00:06]} 12. Bd2 {[%emt 0:00:01]} Bxd2+ {[%emt 0:00:10]} 13. Qxd2 {[%emt 0:00:02]} d5 {[%emt 0:00:14]} 14. cxd5 {[%emt 0:05:22]} cxd5 {[%emt 0:00:05]} 15. Nxe5 {[%emt 0:00:08]} dxe4 {[%emt 0:00:13]} 16. Bc4 {[%emt 0:00:15]} Bb7 {[%emt 0:02:34]} 17. Qxd8 {[%emt 0:00:30]} Raxd8 {[%emt 0:00:04]} 18. O-O {[%emt 0:00:04]} Bd5 {[%emt 0:01:26]} 19. Rbd1 {[%emt 0:00:43]} Bxc4 {[%emt 0:00:24]} 20. Nxc4 {[%emt 0:00:10]} Nd5 {[%emt 0:00:23]} 21. Rd2 {[%emt 0:00:15]} Nc3 {[%emt 0:00:42]} 22. Rc2 {[%emt 0:00:09]} Nb5 {[%emt 0:00:14]} 23. Ne3 {[%emt 0:00:32]} f5 {[%emt 0:01:22]} 24. g3 {[%emt 0:00:27]} Nd4 {[%emt 0:00:29]} 25. Rc7 {[%emt 0:00:05]} Rf7 {[%emt 0:00:18]} 26. Rxf7 {[%emt 0:00:23]} Kxf7 {[%emt 0:00:05]} 27. h4 {[%emt 0:00:01]} g6 {[%emt 0:01:00]} 28. Kg2 {[%emt 0:00:05]} Ne2 {[%emt 0:01:04]} 29. Nc4 {[%emt 0:00:24]} Kf6 {[%emt 0:01:07]} 30. Re1 {[%emt 0:00:13]} Nc3 {[%emt 0:00:07]} 31. Rc1 {[%emt 0:00:11]} Ne2 {[%emt 0:00:25]} 32. Rc2 {[%emt 0:00:11]} Nd4 {[%emt 0:00:10]} 33. Rd2 {[%emt 0:00:04]} Nc6 {[%emt 0:00:17]} 34. Rc2 {[%emt 0:00:14]} Nd4 {[%emt 0:00:08]} 35. Rb2 {[%emt 0:00:04]} Rb8 {[%emt 0:00:56]} 36. Rd2 {[%emt 0:00:33]} Rd8 {[%emt 0:00:03]} 37. Ne3 {[%emt 0:00:04]} Nc6 {[%emt 0:00:34]} 38. Rc2 {[%emt 0:00:05]} Ne5 {[%emt 0:00:11]} 39. Rc5 {[%emt 0:00:19]} Rd2 {[%emt 0:00:17]} 40. Rxe5 {[%emt 0:00:08]} Rxa2 {[%emt 0:00:06]} 41. Rc5 {[%emt 0:00:12]} Rb2 {[%emt 0:00:04]} 42. Rc6+ {[%emt 0:00:02]} Kg7 {[%emt 0:00:08]} 43. Rc7+ {[%emt 0:00:04]} Kh6 {[%emt 0:00:02]} 44. Rb7 {[%emt 0:00:11]} a5 {[%emt 0:00:04]} 45. Rb5 {[%emt 0:00:16]} a4 {[%emt 0:00:05]} 46. bxa4 {[%emt 0:00:03]} 1-0

[Event "European Online Club-ch-E 2021"]
[Site "Online"]
[Date "2021.03.27"]
[Round "3.12"]
[White "Aydin, Gulenay"]
[Black "Soham Das"]
[Result "0-1"]
[ECO "B13"]
[WhiteElo "1975"]
[BlackElo "2385"]
[Annotator "NA"]
[PlyCount "92"]
[EventDate "2021.03.27"]
[EventType "team-tourn"]
[EventCountry "NET"]
[SourceTitle "playchess.com"]
[Source "ChessBase"]
[SourceQuality "1"]
[TimeControl "900+5"]

1. e4 {[%emt 0:00:00]} c6 {[%emt 0:00:05]} 2. d4 {[%emt 0:00:03]} d5 {[%emt 0:00:03]} 3. exd5 {[%emt 0:00:01]} cxd5 {[%emt 0:00:01]} 4. c4 {[%emt 0:00:02]} Nf6 {[%emt 0:00:03]} 5. Nc3 {[%emt 0:00:01]} Nc6 {[%emt 0:00:03]} 6. Bg5 {[%emt 0:00:04]} Ne4 {[%emt 0:00:08]} 7. Be3 {[%emt 0:01:12]} e5 {[%emt 0:00:10]} 8. Nf3 {[%emt 0:04:57]} Bb4 {[%emt 0:00:20]} 9. Rc1 {[%emt 0:00:26]} exd4 {[%emt 0:00:20]} 10. Nxd4 {[%emt 0:00:25]} O-O {[%emt 0:00:11]} 11. Be2 {[%emt 0:00:56]} dxc4 {[%emt 0:00:33]} 12. O-O {[%emt 0:01:39]} Bxc3 {[%emt 0:01:10]} 13. bxc3 {[%emt 0:00:57]} Ne5 {[%emt 0:00:09]} 14. f4 {[%emt 0:01:28]} Nd3 {[%emt 0:00:11]} 15. Bxd3 {[%emt 0:00:06]} cxd3 {[%emt 0:00:35]} 16. Qxd3 {[%emt 0:00:01]} Re8 {[%emt 0:00:03]} 17. Rfe1 {[%emt 0:00:16]} b6 {[%emt 0:00:08]} 18. Qc2 {[%emt 0:01:56]} Bb7 {[%emt 0:00:08]} 19. Nf3 {[%emt 0:00:07]} Rc8 {[%emt 0:00:10]} 20. Bd4 {[%emt 0:00:14]} Qc7 {[%emt 0:00:14]} 21. Be5 {[%emt 0:00:18]} Qc5+ {[%emt 0:00:06]} 22. Bd4 {[%emt 0:00:15]} Qf5 {[%emt 0:00:05]} 23. Ne5 {[%emt 0:01:07]} Qxf4 {[%emt 0:00:19]} 24. Rf1 {[%emt 0:00:06]} Qg5 {[%emt 0:00:03]} 25. Nxf7 {[%emt 0:00:13]} Qh5 {[%emt 0:00:06]} 26. Rce1 {[%emt 0:00:09]} Rc7 {[%emt 0:00:15]} 27. Ne5 {[%emt 0:00:04]} Rxe5 {[%emt 0:00:03]} 28. Bxe5 {[%emt 0:00:01]} Qxe5 {[%emt 0:00:03]} 29. Qb3+ {[%emt 0:00:09]} Bd5 {[%emt 0:00:07]} 30. Qb4 {[%emt 0:00:02]} h6 {[%emt 0:00:05]} 31. Qf8+ {[%emt 0:00:10]} Kh7 {[%emt 0:00:04]} 32. Qf5+ {[%emt 0:00:05]} Qxf5 {[%emt 0:00:05]} 33. Rxf5 {[%emt 0:00:01]} Nxc3 {[%emt 0:00:08]} 34. h3 {[%emt 0:00:10]} Bxa2 {[%emt 0:00:03]} 35. Kh2 {[%emt 0:00:06]} b5 {[%emt 0:00:02]} 36. Rc1 {[%emt 0:00:03]} b4 {[%emt 0:00:03]} 37. Rf2 {[%emt 0:00:02]} b3 {[%emt 0:00:12]} 38. Rb2 {[%emt 0:00:10]} a5 {[%emt 0:00:05]} 39. Re1 {[%emt 0:00:07]} a4 {[%emt 0:00:02]} 40. Re3 {[%emt 0:00:04]} a3 {[%emt 0:00:02]} 41. Rf2 {[%emt 0:00:02]} b2 {[%emt 0:00:03]} 42. Re1 {[%emt 0:00:08]} Bb3 {[%emt 0:00:10]} 43. Rd2 {[%emt 0:00:06]} Nd1 {[%emt 0:00:03]} 44. Rdxd1 {[%emt 0:00:06]} Bxd1 {[%emt 0:00:02]} 45. Rxd1 {[%emt 0:00:01]} Rc1 {[%emt 0:00:03]} 46. Rxc1 {[%emt 0:00:04]} bxc1=Q {[%emt 0:00:03]} 0-1

[Event "European Online Club-ch-E 2021"]
[Site "Online"]
[Date "2021.03.27"]
[Round "3.13"]
[White "Westerberg, Jonathan"]
[Black "Pavlidis, Antonios"]
[Result "1/2-1/2"]
[ECO "B51"]
[WhiteElo "2534"]
[BlackElo "2536"]
[Annotator "ChessBase"]
[PlyCount "89"]
[EventDate "2021.03.27"]
[EventType "team-tourn"]
[EventCountry "NET"]
[SourceTitle "playchess.com"]
[Source "ChessBase"]
[SourceQuality "1"]
[TimeControl "900+5"]

1. e4 {[%emt 0:00:00]} c5 {[%emt 0:00:03]} 2. Nf3 {[%emt 0:00:04]} Nc6 {[%emt 0:00:02]} 3. Nc3 {[%emt 0:00:07]} d6 {[%emt 0:00:20]} 4. Bb5 {[%emt 0:00:40]} Bd7 {[%emt 0:00:04]} 5. O-O {[%emt 0:00:02]} Nf6 {[%emt 0:00:16]} 6. d3 {[%emt 0:00:18]} e6 {[%emt 0:00:07]} 7. a3 {[%emt 0:00:49]} Be7 {[%emt 0:00:03]} 8. h3 {[%emt 0:00:10]} O-O {[%emt 0:00:03]} 9. Bf4 {[%emt 0:00:03]} a6 {[%emt 0:00:12]} 10. Bc4 {[%emt 0:00:03]} b5 {[%emt 0:00:01]} 11. Ba2 {[%emt 0:00:03]} e5 {[%emt 0:00:27]} 12. Bg5 {[%emt 0:00:06]} Be6 {[%emt 0:00:02]} 13. Bxf6 {[%emt 0:00:04]} Bxf6 {[%emt 0:00:02]} 14. Nd5 {[%emt 0:00:13]} g6 {[%emt 0:00:21]} 15. c3 {[%emt 0:00:35]} Bg7 {[%emt 0:00:03]} 16. Qd2 {[%emt 0:01:10]} h6 {[%emt 0:00:12]} 17. a4 {[%emt 0:00:45]} Kh8 {[%emt 0:00:45]} 18. Nh2 {[%emt 0:01:18]} f5 {[%emt 0:00:23]} 19. f3 {[%emt 0:01:12]} Ne7 {[%emt 0:01:59]} 20. Nxe7 {[%emt 0:00:09]} Qxe7 {[%emt 0:00:03]} 21. Bxe6 {[%emt 0:00:54]} Qxe6 {[%emt 0:00:03]} 22. Rfe1 {[%emt 0:00:01]} d5 {[%emt 0:00:23]} 23. Nf1 {[%emt 0:01:51]} d4 {[%emt 0:00:16]} 24. cxd4 {[%emt 0:00:20]} exd4 {[%emt 0:00:15]} 25. exf5 {[%emt 0:00:28]} Qxf5 {[%emt 0:00:08]} 26. Ng3 {[%emt 0:00:03]} Qd5 {[%emt 0:00:12]} 27. axb5 {[%emt 0:01:10]} axb5 {[%emt 0:00:04]} 28. Ra5 {[%emt 0:00:01]} Rxa5 {[%emt 0:04:36]} 29. Qxa5 {[%emt 0:00:04]} Qb3 {[%emt 0:00:01]} 30. Qb6 {[%emt 0:00:10]} Qxd3 {[%emt 0:00:24]} 31. Qxc5 {[%emt 0:00:07]} Qc4 {[%emt 0:00:08]} 32. Qd6 {[%emt 0:00:45]} d3 {[%emt 0:01:16]} 33. Rd1 {[%emt 0:00:12]} Qd4+ {[%emt 0:02:39]} 34. Qxd4 {[%emt 0:00:03]} Bxd4+ {[%emt 0:00:02]} 35. Kf1 {[%emt 0:00:05]} Be5 {[%emt 0:00:10]} 36. Ne4 {[%emt 0:00:12]} Rd8 {[%emt 0:00:02]} 37. b3 {[%emt 0:00:41]} h5 {[%emt 0:00:17]} 38. Nc5 {[%emt 0:01:28]} d2 {[%emt 0:00:09]} 39. Ne4 {[%emt 0:00:02]} Rd3 {[%emt 0:00:04]} 40. Nxd2 {[%emt 0:00:29]} Bf4 {[%emt 0:00:06]} 41. Ke2 {[%emt 0:00:01]} Re3+ {[%emt 0:00:02]} 42. Kf2 {[%emt 0:00:03]} Rd3 {[%emt 0:00:01]} 43. Ke2 {[%emt 0:00:01]} Re3+ {[%emt 0:00:02]} 44. Kf2 {[%emt 0:00:02]} Rd3 {[%emt 0:00:01]} 45. Ke2 {[%emt 0:00:01]} 1/2-1/2

[Event "European Online Club-ch-E 2021"]
[Site "Online"]
[Date "2021.03.27"]
[Round "3.14"]
[White "Stefanou, Dimitrios"]
[Black "Seo, Jung Min"]
[Result "1-0"]
[ECO "C00"]
[WhiteElo "2099"]
[BlackElo "2453"]
[Annotator "ChessBase"]
[PlyCount "101"]
[EventDate "2021.03.27"]
[EventType "team-tourn"]
[EventCountry "NET"]
[SourceTitle "playchess.com"]
[Source "ChessBase"]
[SourceQuality "1"]
[TimeControl "900+5"]

1. e4 {[%emt 0:00:00]} e6 {[%emt 0:00:02]} 2. Qe2 {[%emt 0:00:04]} e5 {[%emt 0:00:02]} 3. Nf3 {[%emt 0:00:09]} Nc6 {[%emt 0:00:02]} 4. g3 {[%emt 0:00:05]} Nf6 {[%emt 0:00:02]} 5. Bg2 {[%emt 0:00:18]} g6 {[%emt 0:00:02]} 6. O-O {[%emt 0:00:04]} Bg7 {[%emt 0:00:01]} 7. d3 {[%emt 0:00:59]} O-O {[%emt 0:00:04]} 8. Nc3 {[%emt 0:00:05]} d6 {[%emt 0:00:02]} 9. h3 {[%emt 0:00:08]} h6 {[%emt 0:00:07]} 10. Be3 {[%emt 0:00:07]} Be6 {[%emt 0:00:17]} 11. Rad1 {[%emt 0:00:24]} Qe7 {[%emt 0:00:24]} 12. d4 {[%emt 0:00:31]} exd4 {[%emt 0:00:30]} 13. Nxd4 {[%emt 0:00:04]} Nd7 {[%emt 0:00:05]} 14. Rfe1 {[%emt 0:01:41]} Nb6 {[%emt 0:00:15]} 15. b3 {[%emt 0:01:46]} Rae8 {[%emt 0:00:29]} 16. Qd2 {[%emt 0:00:43]} Kh7 {[%emt 0:00:12]} 17. a4 {[%emt 0:01:48]} Qd7 {[%emt 0:00:10]} 18. Kh2 {[%emt 0:00:16]} Qd8 {[%emt 0:00:48]} 19. f4 {[%emt 0:00:22]} Bd7 {[%emt 0:00:05]} 20. Nce2 {[%emt 0:01:10]} Nc8 {[%emt 0:00:22]} 21. c4 {[%emt 0:00:14]} a5 {[%emt 0:00:42]} 22. Bf2 {[%emt 0:00:11]} N8e7 {[%emt 0:00:11]} 23. Nc3 {[%emt 0:00:09]} Nxd4 {[%emt 0:00:08]} 24. Bxd4 {[%emt 0:00:03]} Bxd4 {[%emt 0:00:02]} 25. Qxd4 {[%emt 0:00:01]} Nc6 {[%emt 0:00:01]} 26. Qf2 {[%emt 0:00:18]} Nb4 {[%emt 0:00:11]} 27. e5 {[%emt 0:00:34]} Bf5 {[%emt 0:00:25]} 28. Be4 {[%emt 0:00:25]} Qc8 {[%emt 0:00:14]} 29. g4 {[%emt 0:00:25]} Bd7 {[%emt 0:00:15]} 30. Bg2 {[%emt 0:01:35]} dxe5 {[%emt 0:00:14]} 31. fxe5 {[%emt 0:00:37]} Bc6 {[%emt 0:00:06]} 32. Nd5 {[%emt 0:00:22]} Bxd5 {[%emt 0:00:31]} 33. cxd5 {[%emt 0:00:00]} Qd8 {[%emt 0:00:12]} 34. Qg3 {[%emt 0:00:19]} Qd7 {[%emt 0:00:17]} 35. h4 {[%emt 0:00:18]} Qe7 {[%emt 0:00:17]} 36. Re4 {[%emt 0:00:40]} Rd8 {[%emt 0:00:08]} 37. d6 {[%emt 0:00:14]} Qd7 {[%emt 0:00:15]} 38. Red4 {[%emt 0:00:14]} cxd6 {[%emt 0:00:08]} 39. Rxd6 {[%emt 0:00:04]} Qe7 {[%emt 0:00:10]} 40. h5 {[%emt 0:00:04]} Nc6 {[%emt 0:01:15]} 41. Bxc6 {[%emt 0:00:21]} bxc6 {[%emt 0:00:03]} 42. Kh3 {[%emt 0:00:19]} Rxd6 {[%emt 0:00:26]} 43. Rxd6 {[%emt 0:00:00]} gxh5 {[%emt 0:00:20]} 44. gxh5 {[%emt 0:00:15]} Rg8 {[%emt 0:00:26]} 45. Rxh6+ {[%emt 0:00:03]} Kxh6 {[%emt 0:00:02]} 46. Qxg8 {[%emt 0:00:01]} Qxe5 {[%emt 0:00:22]} 47. Qxf7 {[%emt 0:00:12]} Qxh5+ {[%emt 0:00:20]} 48. Qxh5+ {[%emt 0:00:00]} Kxh5 {[%emt 0:00:02]} 49. Kg3 {[%emt 0:00:02]} Kh6 {[%emt 0:00:05]} 50. Kf4 {[%emt 0:00:02]} Kg6 {[%emt 0:00:02]} 51. Ke5 {[%emt 0:00:02]} 1-0

[Event "European Online Club-ch-E 2021"]
[Site "Online"]
[Date "2021.03.27"]
[Round "3.15"]
[White "Hauge, Lars Oskar"]
[Black "Koutlas, Nikolaos"]
[Result "1-0"]
[ECO "B21"]
[WhiteElo "2483"]
[BlackElo "2078"]
[Annotator "ChessBase"]
[PlyCount "105"]
[EventDate "2021.03.27"]
[EventType "team-tourn"]
[EventCountry "NET"]
[SourceTitle "playchess.com"]
[Source "ChessBase"]
[SourceQuality "1"]
[TimeControl "900+5"]

1. e4 {[%emt 0:00:00]} c5 {[%emt 0:00:03]} 2. Nf3 {[%emt 0:00:10]} Nc6 {[%emt 0:00:02]} 3. d4 {[%emt 0:00:04]} cxd4 {[%emt 0:00:02]} 4. c3 {[%emt 0:00:06]} dxc3 {[%emt 0:00:33]} 5. Nxc3 {[%emt 0:00:09]} e6 {[%emt 0:00:02]} 6. Bc4 {[%emt 0:00:20]} Bb4 {[%emt 0:00:03]} 7. O-O {[%emt 0:00:23]} Nge7 {[%emt 0:00:03]} 8. Nb5 {[%emt 0:00:37]} d5 {[%emt 0:00:13]} 9. exd5 {[%emt 0:01:34]} exd5 {[%emt 0:00:04]} 10. Bxd5 {[%emt 0:00:05]} Nxd5 {[%emt 0:00:02]} 11. Qxd5 {[%emt 0:00:03]} O-O {[%emt 0:00:02]} 12. Qh5 {[%emt 0:00:18]} a6 {[%emt 0:01:53]} 13. Nc3 {[%emt 0:00:05]} Nd4 {[%emt 0:00:18]} 14. Nxd4 {[%emt 0:00:31]} Qxd4 {[%emt 0:00:03]} 15. Be3 {[%emt 0:00:01]} Qg4 {[%emt 0:00:24]} 16. Qxg4 {[%emt 0:00:11]} Bxg4 {[%emt 0:00:00]} 17. Nd5 {[%emt 0:00:05]} Bd6 {[%emt 0:00:21]} 18. Rac1 {[%emt 0:00:12]} Rac8 {[%emt 0:00:15]} 19. Nb6 {[%emt 0:00:40]} Rxc1 {[%emt 0:00:44]} 20. Rxc1 {[%emt 0:00:04]} Be6 {[%emt 0:00:01]} 21. b3 {[%emt 0:00:03]} Rd8 {[%emt 0:00:23]} 22. f3 {[%emt 0:00:05]} h5 {[%emt 0:01:18]} 23. g3 {[%emt 0:00:16]} f6 {[%emt 0:00:14]} 24. Kf2 {[%emt 0:00:03]} Kf7 {[%emt 0:00:03]} 25. h4 {[%emt 0:00:09]} Rg8 {[%emt 0:00:36]} 26. Bc5 {[%emt 0:00:50]} Bb8 {[%emt 0:00:33]} 27. Be3 {[%emt 0:01:48]} g5 {[%emt 0:00:23]} 28. hxg5 {[%emt 0:00:14]} fxg5 {[%emt 0:00:03]} 29. Rc5 {[%emt 0:02:08]} h4 {[%emt 0:01:41]} 30. g4 {[%emt 0:00:02]} Bg3+ {[%emt 0:03:12]} 31. Kg2 {[%emt 0:00:14]} Re8 {[%emt 0:02:45]} 32. Bxg5 {[%emt 0:00:17]} Bxb3 {[%emt 0:00:51]} 33. Bxh4 {[%emt 0:00:33]} Bxh4 {[%emt 0:00:03]} 34. axb3 {[%emt 0:00:03]} Re2+ {[%emt 0:00:10]} 35. Kh3 {[%emt 0:00:05]} Bd8 {[%emt 0:00:04]} 36. Nc4 {[%emt 0:00:11]} b5 {[%emt 0:00:09]} 37. Ne5+ {[%emt 0:00:22]} Ke6 {[%emt 0:00:04]} 38. Nc6 {[%emt 0:00:11]} Kd6 {[%emt 0:00:16]} 39. Rc3 {[%emt 0:00:14]} Bc7 {[%emt 0:00:10]} 40. g5 {[%emt 0:00:06]} Rd2 {[%emt 0:00:06]} 41. f4 {[%emt 0:00:14]} Ke6 {[%emt 0:00:04]} 42. Kg4 {[%emt 0:00:06]} Rg2+ {[%emt 0:00:01]} 43. Kf3 {[%emt 0:00:03]} Rd2 {[%emt 0:00:04]} 44. Ke3 {[%emt 0:00:23]} Rd1 {[%emt 0:00:06]} 45. Nd4+ {[%emt 0:00:48]} Kd7 {[%emt 0:00:03]} 46. Nf3 {[%emt 0:00:35]} Bb6+ {[%emt 0:00:12]} 47. Ke4 {[%emt 0:00:03]} Rf1 {[%emt 0:00:02]} 48. f5 {[%emt 0:00:06]} a5 {[%emt 0:00:02]} 49. Ne5+ {[%emt 0:00:06]} Kd8 {[%emt 0:00:06]} 50. g6 {[%emt 0:00:15]} Bc7 {[%emt 0:00:03]} 51. g7 {[%emt 0:00:08]} Re1+ {[%emt 0:00:02]} 52. Re3 {[%emt 0:00:09]} Rg1 {[%emt 0:00:01]} 53. Ng6 {[%emt 0:00:02]} 1-0